fUSD/lending_fUSD_20240814
["ID","MTS","AMOUNT","RATE_DAILY","PERIOD"]
[334954157,1723671055048,-151.0,0.00014782,2]
[334954158,1723671055057,-151.0,0.00014782,2]
[334954159,1723671055067,-500.923607,0.00014782,2]
[334954160,1723671055078,-500.923607,0.00014782,2]
[334954161,1723671055087,-166.486331,0.00014782,2]
[334954162,1723671055097,-151.0,0.00014782,2]
[334954163,1723671055106,-166.486331,0.00014782,2]
[334954164,1723671055116,-13313.1082195,0.00014782,2]
[334954165,1723671055125,-192.855721,0.00014782,2]
[334954166,1723671055134,-192.855721,0.00014782,2]
[334954167,1723671055143,-586.485005,0.00014782,2]
[334954168,1723671055153,-196.877797,0.00014782,2]
[334954169,1723671055162,-586.485005,0.00014782,2]
[334954170,1723671055171,-196.877797,0.00014782,2]
[334954171,1723671055180,-2859.8128859,0.00014782,2]
[334954172,1723671055190,-1653.213627,0.00014782,2]
[334954173,1723671055199,-1653.213627,0.00014782,2]
[334954174,1723671055209,-151.0,0.00014782,2]
[334954175,1723671055218,-257.362315,0.00014782,2]
[334954176,1723671055227,-180.873321,0.00014782,2]
[334954177,1723671055237,-257.362315,0.00014782,2]
[334954178,1723671055246,-2426.382911,0.00014782,2]
[334954179,1723671055255,-2426.382911,0.00014782,2]
[334954180,1723671055265,-151.0,0.00014783,2]
[334954181,1723671055274,-151.0,0.00014783,2]
[334954182,1723671055284,-151.0,0.00014784,2]
[334954183,1723671055294,-151.0,0.00014784,2]
[334954184,1723671055303,-151.0,0.00014784,2]
[334954185,1723671055314,-151.0,0.00014784,2]
[334954186,1723671055324,-151.0,0.00014784,2]
[334954187,1723671055335,-151.0,0.00014784,2]
[334954188,1723671055345,-1072.180846,0.00014784,2]
[334954189,1723671055355,-1072.180846,0.00014784,2]
[334954190,1723671055365,-151.0,0.00014784,2]
[334954191,1723671055374,-151.0,0.00014784,2]
[334954192,1723671055383,-301.796473,0.00014784,2]
[334954193,1723671055393,-499.626765,0.00014784,2]
[334954194,1723671055402,-301.796473,0.00014784,2]
[334954195,1723671055412,-499.626765,0.00014784,2]
[334954196,1723671055421,-1953.876887,0.00014784,2]
[334954197,1723671055429,-182.328166,0.00014784,2]
[334954198,1723671055438,-1953.876887,0.00014784,2]
[334954199,1723671055447,-151.0,0.00014784,2]
[334954200,1723671055456,-182.328166,0.00014784,2]
[334954201,1723671055465,-151.0,0.00014784,2]
[334954202,1723671055476,-151.0,0.00014784,2]
[334954203,1723671055486,-319.181767,0.00014784,2]
[334954204,1723671055497,-319.181767,0.00014784,2]
[334954205,1723671055507,-199.933526,0.00014784,2]
[334954206,1723671055518,-199.933526,0.00014784,2]
[334954207,1723671055529,-207.775921,0.00014784,2]
[334954208,1723671055539,-207.775921,0.00014784,2]
[334954209,1723671055548,-151.0,0.00014784,2]
[334954210,1723671055557,-151.0,0.00014784,2]
[334954211,1723671055567,-949.98397,0.00014784,2]
[334954212,1723671055576,-949.98397,0.00014784,2]
[334954213,1723671055585,-1704.69613,0.00014784,2]
[334954214,1723671055595,-1704.69613,0.00014784,2]
[334954215,1723671055604,-151.0,0.00014784,2]
[334954216,1723671055615,-1091.246547,0.00014784,2]
[334954217,1723671055625,-1091.246547,0.00014784,2]
[334954218,1723671055634,-151.0,0.00014784,2]
[334954219,1723671055644,-463.702414,0.00014784,2]
[334954220,1723671055654,-463.702414,0.00014784,2]
[334954221,1723671055665,-283.669863,0.00014784,2]
[334954222,1723671055675,-283.669863,0.00014784,2]
[334954223,1723671055687,-1276.494415,0.00014784,2]
[334954224,1723671055697,-1276.494415,0.00014784,2]
[334954225,1723671055708,-1034.841714,0.00014784,2]
[334954226,1723671055717,-1034.841714,0.00014784,2]
[334954227,1723671055726,-1238.655571,0.00014784,2]
[334954228,1723671055736,-1238.655571,0.00014784,2]
[334954229,1723671055748,-192.494955,0.00014792,2]
[334954230,1723671055759,-198.385566,0.00014792,2]
[334954231,1723671055769,-151.0,0.00014792,2]
[334954232,1723671055780,-151.0,0.00014792,2]
[334954233,1723671055792,-151.0,0.00014792,2]
[334954234,1723671055803,-151.0,0.00014792,2]
[334954235,1723671055812,-214.097175,0.00014792,2]
[334954236,1723671055821,-151.0,0.00014792,2]
[334954237,1723671055834,-214.097175,0.00014792,2]
[334954238,1723671055843,-151.0,0.00014792,2]
[334954239,1723671055854,-151.0,0.00014792,2]
[334954240,1723671055863,-209.026705,0.00014792,2]
[334954241,1723671055874,-209.026705,0.00014792,2]
[334954242,1723671055884,-163.712186,0.00014792,2]
[334954243,1723671055893,-163.712186,0.00014792,2]
[334954244,1723671055904,-500.0,0.00014792,2]
[334954245,1723671055914,-500.0,0.00014792,2]
[334954246,1723671055924,-2033.88,0.00014792,2]
[334954247,1723671055934,-500.0,0.00014792,2]
[334954248,1723671055943,-1074.68,0.00014792,2]
[334954249,1723671055952,-500.0,0.00014792,2]
[334954250,1723671055963,-500.0,0.00014792,2]
[334954251,1723671055973,-500.0,0.00014792,2]
[334954252,1723671055982,-1128.61,0.00014792,2]
[334954253,1723671055991,-500.0,0.00014792,2]
[334954254,1723671056001,-500.0,0.00014792,2]
[334954255,1723671056010,-500.0,0.00014792,2]
[334954256,1723671056019,-500.0,0.00014792,2]
[334954257,1723671056028,-507.16,0.00014792,2]
[334954258,1723671056038,-500.0,0.00014792,2]
[334954259,1723671056047,-500.0,0.00014792,2]
[334954260,1723671056056,-547.28475259,0.00014792,2]
[334954261,1723671056065,-300.943639,0.00014792,2]
[334954262,1723671056074,-500.0,0.00014792,2]
[334954263,1723671056084,-300.943639,0.00014792,2]
[334954264,1723671056094,-500.0,0.00014792,2]
[334954265,1723671056104,-300.0,0.00014793,2]
[334954266,1723671056114,-500.0,0.00014793,2]
[334954267,1723671056126,-500.0,0.00014793,2]
[334954268,1723671056136,-500.0,0.00014793,2]
[334954269,1723671056145,-500.0,0.00014793,2]
[334954270,1723671056155,-500.0,0.00014793,2]
[334954271,1723671056165,-500.0,0.00014793,2]
[334954272,1723671056268,-500.0,0.00014793,2]
[334954273,1723671056279,-500.0,0.00014793,2]
[334954274,1723671056288,-500.0,0.00014793,2]
[334954275,1723671056297,-500.0,0.00014793,2]
[334954276,1723671056307,-500.0,0.00014793,2]
[334954277,1723671056316,-500.0,0.00014793,2]
[334954278,1723671056325,-500.0,0.00014793,2]
[334954279,1723671056335,-442.26134452,0.00014793,2]
[334954280,1723671056345,-500.0,0.00014793,2]
[334954281,1723671056357,-500.0,0.00014793,2]
[334954282,1723671056367,-500.0,0.00014793,2]
[334954283,1723671056377,-151.0,0.00014793,2]
[334954284,1723671056386,-500.0,0.00014793,2]
[334954285,1723671056396,-500.0,0.00014793,2]
[334954286,1723671056406,-500.0,0.00014793,2]
[334954287,1723671056416,-500.0,0.00014793,2]
[334954288,1723671056426,-371.07511623,0.00014793,2]
[334954289,1723671056438,-151.0,0.00014793,2]
[334954290,1723671056449,-500.0,0.00014793,2]
[334954291,1723671056459,-500.0,0.00014793,2]
[334954292,1723671056468,-328.071574,0.00014793,2]
[334954293,1723671056477,-500.0,0.00014793,2]
[334954294,1723671056487,-328.071574,0.00014793,2]
[334954295,1723671056497,-500.0,0.00014793,2]
[334954296,1723671056506,-500.0,0.00014793,2]
[334954297,1723671056516,-500.0,0.00014793,2]
[334954298,1723671056525,-164.19778983,0.00014793,2]
[334954299,1723671056536,-500.0,0.00014793,2]
[334954300,1723671056545,-696.69,0.00014793,2]
[334954301,1723671056554,-500.0,0.00014793,2]
[334954302,1723671056564,-500.0,0.00014793,2]
[334954303,1723671056574,-500.0,0.00014793,2]
[334954304,1723671056584,-979.79,0.00014793,2]
[334954305,1723671056594,-151.0,0.00014793,2]
[334954306,1723671056603,-500.0,0.00014793,2]
[334954307,1723671056612,-500.0,0.00014793,2]
[334954308,1723671056621,-500.0,0.00014793,2]
[334954309,1723671056630,-154.27687,0.00014793,2]
[334954310,1723671056640,-500.0,0.00014793,2]
[334954311,1723671056651,-500.0,0.00014793,2]
[334954312,1723671056660,-500.0,0.00014793,2]
[334954313,1723671056670,-500.0,0.00014793,2]
[334954314,1723671056679,-542.07366078,0.00014793,2]
[334954315,1723671056689,-495.27093536,0.00014793,2]
[334954316,1723671056699,-246.861434,0.00014793,2]
[334954317,1723671056710,-1000.0,0.00014793,2]
[334954318,1723671056725,-500.0,0.00014793,2]
[334954319,1723671056735,-500.0,0.00014793,2]
[334954320,1723671056744,-2393.569949,0.00014793,2]
[334954321,1723671056753,-500.0,0.00014793,2]
[334954322,1723671056763,-2393.569949,0.00014793,2]
[334954323,1723671056773,-527.75007556,0.00014793,2]
[334954324,1723671056783,-500.0,0.00014793,2]
[334954325,1723671056794,-500.0,0.00014793,2]
[334954326,1723671056804,-500.0,0.00014793,2]
[334954327,1723671056813,-500.0,0.00014793,2]
[334954328,1723671056822,-151.0,0.00014793,2]
[334954329,1723671056834,-500.0,0.00014793,2]
[334954330,1723671056843,-639.81,0.00014793,2]
[334954331,1723671056852,-500.0,0.00014793,2]
[334954332,1723671056863,-151.0,0.00014793,2]
[334954333,1723671056873,-155.178124,0.00014793,2]
[334954334,1723671056883,-500.0,0.00014793,2]
[334954335,1723671056893,-500.0,0.00014793,2]
[334954336,1723671056903,-212.28109,0.00014793,2]
[334954337,1723671056912,-212.28109,0.00014793,2]
[334954338,1723671056923,-370.301914,0.00014793,2]
[334954339,1723671056935,-500.0,0.00014793,2]
[334954340,1723671056944,-500.0,0.00014793,2]
[334954341,1723671056955,-267.021086,0.00014793,2]
[334954342,1723671056964,-370.301914,0.00014793,2]
[334954343,1723671056974,-267.021086,0.00014793,2]
[334954344,1723671056983,-919.322496,0.00014793,2]
[334954345,1723671056992,-919.322496,0.00014793,2]
[334954346,1723671057002,-500.0,0.00014793,2]
[334954347,1723671057011,-500.0,0.00014793,2]
[334954348,1723671057019,-500.0,0.00014793,2]
[334954349,1723671057029,-357.539196,0.00014793,2]
[334954350,1723671057038,-357.539196,0.00014793,2]
[334954351,1723671057048,-500.0,0.00014793,2]
[334954352,1723671057058,-500.0,0.00014793,2]
[334954353,1723671057067,-500.0,0.00014793,2]
[334954354,1723671057076,-673.87,0.00014793,2]
[334954355,1723671057086,-500.0,0.00014793,2]
[334954356,1723671057096,-1191.97,0.00014793,2]
[334954357,1723671057105,-296.765324,0.00014793,2]
[334954358,1723671057115,-500.0,0.00014793,2]
[334954359,1723671057124,-296.765324,0.00014793,2]
[334954360,1723671057134,-500.0,0.00014793,2]
[334954361,1723671057143,-500.0,0.00014793,2]
[334954362,1723671057153,-500.0,0.00014793,2]
[334954363,1723671057163,-500.0,0.00014793,2]
[334954364,1723671057174,-716.22,0.00014793,2]
[334954365,1723671057183,-500.0,0.00014793,2]
[334954366,1723671057193,-500.0,0.00014793,2]
[334954367,1723671057202,-500.0,0.00014793,2]
[334954368,1723671057216,-1083.34,0.00014793,2]
[334954369,1723671057225,-500.0,0.00014793,2]
[334954370,1723671057234,-500.0,0.00014793,2]
[334954371,1723671057244,-500.0,0.00014793,2]
[334954372,1723671057253,-500.0,0.00014793,2]
[334954373,1723671057263,-500.0,0.00014793,2]
[334954374,1723671057274,-500.0,0.00014793,2]
[334954375,1723671057283,-352.72349555,0.00014793,2]
[334954376,1723671057293,-867.92,0.00014793,2]
[334954377,1723671057303,-500.0,0.00014793,2]
[334954378,1723671057313,-598.09,0.00014793,2]
[334954379,1723671057322,-500.0,0.00014793,2]
[334954380,1723671057332,-500.0,0.00014793,2]
[334954381,1723671057343,-500.0,0.00014793,2]
[334954382,1723671057353,-500.0,0.00014793,2]
[334954383,1723671057362,-192.855721,0.00014793,2]
[334954384,1723671057372,-192.855721,0.00014793,2]
[334954385,1723671057382,-500.0,0.00014793,2]
[334954386,1723671057391,-500.0,0.00014793,2]
[334954387,1723671057401,-500.0,0.00014793,2]
[334954388,1723671057411,-500.0,0.00014793,2]
[334954389,1723671057420,-500.0,0.00014793,2]
[334954390,1723671057429,-500.0,0.00014793,2]
[334954391,1723671057439,-500.0,0.00014793,2]
[334954392,1723671057449,-500.0,0.00014793,2]
[334954393,1723671057459,-500.0,0.00014793,2]
[334954394,1723671057469,-586.485005,0.00014793,2]
[334954395,1723671057479,-196.877797,0.00014793,2]
[334954396,1723671057488,-837.07,0.00014793,2]
[334954397,1723671057498,-586.485005,0.00014793,2]
[334954398,1723671057507,-196.877797,0.00014793,2]
[334954399,1723671057517,-526.04,0.00014793,2]
[334954400,1723671057526,-1653.213627,0.00014793,2]
[334954401,1723671057536,-500.0,0.00014793,2]
[334954402,1723671057546,-1653.213627,0.00014793,2]
[334954403,1723671057555,-151.0,0.00014793,2]
[334954404,1723671057564,-257.362315,0.00014793,2]
[334954405,1723671057574,-500.0,0.00014793,2]
[334954406,1723671057584,-500.0,0.00014793,2]
[334954407,1723671057593,-500.0,0.00014793,2]
[334954408,1723671057603,-257.362315,0.00014793,2]
[334954409,1723671057613,-500.0,0.00014793,2]
[334954410,1723671057622,-500.0,0.00014793,2]
[334954411,1723671057631,-500.0,0.00014793,2]
[334954412,1723671057640,-500.0,0.00014793,2]
[334954413,1723671057650,-2426.382911,0.00014793,2]
[334954414,1723671057660,-2426.382911,0.00014793,2]
[334954415,1723671057669,-500.0,0.00014793,2]
[334954416,1723671057679,-500.0,0.00014793,2]
[334954417,1723671057688,-500.0,0.00014793,2]
[334954418,1723671057697,-500.0,0.00014793,2]
[334954419,1723671057707,-300.0,0.00014793,2]
[334954420,1723671057716,-2012895.55328186,0.00014794,2]
[334954421,1723671057726,-151.0,0.00014794,2]
[334954422,1723671057735,-151.0,0.00014794,2]
[334954423,1723671057745,-198.385566,0.00014794,2]
[334954424,1723671057754,-198.385566,0.00014794,2]
[334954425,1723671057763,-151.0,0.00014794,2]
[334954426,1723671057773,-151.0,0.00014794,2]
[334954427,1723671057782,-151.0,0.00014794,2]
[334954428,1723671057792,-151.0,0.00014794,2]
[334954429,1723671057802,-151.0,0.00014794,2]
[334954430,1723671057812,-151.0,0.00014794,2]
[334954431,1723671057821,-151.0,0.00014794,2]
[334954432,1723671057835,-151.0,0.00014794,2]
[334954433,1723671057844,-151.0,0.00014794,2]
[334954434,1723671057853,-151.0,0.00014794,2]
[334954435,1723671057862,-234.774764,0.00014794,2]
[334954436,1723671057873,-151.0,0.00014794,2]
[334954437,1723671057882,-151.0,0.00014794,2]
[334954438,1723671057892,-151.0,0.00014794,2]
[334954439,1723671057902,-260.714024,0.00014794,2]
[334954440,1723671057913,-151.0,0.00014794,2]
[334954441,1723671057922,-214.097175,0.00014794,2]
[334954442,1723671057932,-151.0,0.00014794,2]
[334954443,1723671058037,-214.097175,0.00014794,2]
[334954444,1723671058049,-151.0,0.00014794,2]
[334954445,1723671058059,-151.627754,0.00014794,2]
[334954446,1723671058069,-151.0,0.00014794,2]
[334954447,1723671058078,-151.0,0.00014794,2]
[334954448,1723671058088,-209.026705,0.00014794,2]
[334954449,1723671058097,-151.0,0.00014794,2]
[334954450,1723671058106,-209.026705,0.00014794,2]
[334954451,1723671058116,-151.0,0.00014794,2]
[334954452,1723671058126,-151.0,0.00014794,2]
[334954453,1723671058135,-163.712186,0.00014794,2]
[334954454,1723671058145,-151.0,0.00014794,2]
[334954455,1723671058155,-163.712186,0.00014794,2]
[334954456,1723671058164,-1072.180846,0.00014794,2]
[334954457,1723671058174,-1072.180846,0.00014794,2]
[334954458,1723671058183,-151.0,0.00014794,2]
[334954459,1723671058193,-151.0,0.00014794,2]
[334954460,1723671058203,-301.796473,0.00014794,2]
[334954461,1723671058215,-499.626765,0.00014794,2]
[334954462,1723671058225,-301.796473,0.00014794,2]
[334954463,1723671058235,-499.626765,0.00014794,2]
[334954464,1723671058244,-500.0,0.00014794,2]
[334954465,1723671058254,-500.0,0.00014794,2]
[334954466,1723671058263,-500.0,0.00014794,2]
[334954467,1723671058273,-1953.876887,0.00014794,2]
[334954468,1723671058283,-182.328166,0.00014794,2]
[334954469,1723671058292,-1953.876887,0.00014794,2]
[334954470,1723671058302,-286.213787,0.00014794,2]
[334954471,1723671058311,-182.328166,0.00014794,2]
[334954472,1723671058321,-151.0,0.00014794,2]
[334954473,1723671058330,-151.0,0.00014794,2]
[334954474,1723671058340,-319.181767,0.00014794,2]
[334954475,1723671058349,-319.181767,0.00014794,2]
[334954476,1723671058358,-199.933526,0.00014794,2]
[334954477,1723671058368,-199.933526,0.00014794,2]
[334954478,1723671058377,-500.0,0.00014794,2]
[334954479,1723671058386,-828.6,0.00014794,2]
[334954480,1723671058396,-207.775921,0.00014794,2]
[334954481,1723671058406,-207.775921,0.00014794,2]
[334954482,1723671058415,-500.0,0.00014794,2]
[334954483,1723671058424,-151.0,0.00014794,2]
[334954484,1723671058435,-187.739843,0.00014794,2]
[334954485,1723671058446,-949.98397,0.00014794,2]
[334954486,1723671058456,-949.98397,0.00014794,2]
[334954487,1723671058465,-500.0,0.00014794,2]
[334954488,1723671058475,-1704.69613,0.00014794,2]
[334954489,1723671058484,-1704.69613,0.00014794,2]
[334954490,1723671058493,-151.0,0.00014794,2]
[334954491,1723671058503,-151.0,0.00014794,2]
[334954492,1723671058512,-578.01,0.00014794,2]
[334954493,1723671058522,-275.793089,0.00014794,2]
[334954494,1723671058532,-1091.246547,0.00014794,2]
[334954495,1723671058541,-275.793089,0.00014794,2]
[334954496,1723671058552,-1091.246547,0.00014794,2]
[334954497,1723671058562,-151.0,0.00014794,2]
[334954498,1723671058571,-427.976466,0.00014794,2]
[334954499,1723671058581,-156.934275,0.00014794,2]
[334954500,1723671058593,-427.976466,0.00014794,2]
[334954501,1723671058602,-156.934275,0.00014794,2]
[334954502,1723671058611,-151.0,0.00014794,2]
[334954503,1723671058621,-500.0,0.00014794,2]
[334954504,1723671058631,-500.0,0.00014794,2]
[334954505,1723671058640,-328.071574,0.00014794,2]
[334954506,1723671058650,-328.071574,0.00014794,2]
[334954507,1723671058660,-2189.59777,0.00014794,2]
[334954508,1723671058670,-500.0,0.00014794,2]
[334954509,1723671058680,-2189.59777,0.00014794,2]
[334954510,1723671058690,-500.0,0.00014794,2]
[334954511,1723671058700,-606.77,0.00014794,2]
[334954512,1723671058710,-300.879041,0.00014794,2]
[334954513,1723671058720,-300.879041,0.00014794,2]
[334954514,1723671058731,-500.0,0.00014794,2]
[334954515,1723671058740,-500.0,0.00014794,2]
[334954516,1723671058749,-278.01156692,0.00014794,2]
[334954517,1723671058759,-2393.569949,0.00014794,2]
[334954518,1723671058769,-456.46292096,0.00014794,2]
[334954519,1723671058778,-2393.569949,0.00014794,2]
[334954520,1723671058788,-175.25,0.00014794,2]
[334954521,1723671058797,-500.0,0.00014794,2]
[334954522,1723671058807,-151.0,0.00014794,2]
[334954523,1723671058816,-500.0,0.00014794,2]
[334954524,1723671058826,-151.0,0.00014794,2]
[334954525,1723671058838,-500.0,0.00014794,2]
[334954526,1723671058848,-212.28109,0.00014794,2]
[334954527,1723671058857,-212.28109,0.00014794,2]
[334954528,1723671058868,-370.301914,0.00014794,2]
[334954529,1723671058879,-267.021086,0.00014794,2]
[334954530,1723671058889,-370.301914,0.00014794,2]
[334954531,1723671058899,-267.021086,0.00014794,2]
[334954532,1723671058910,-500.0,0.00014794,2]
[334954533,1723671058921,-500.0,0.00014794,2]
[334954534,1723671058931,-454.889454,0.00014794,2]
[334954535,1723671058940,-354.47,0.00014794,2]
[334954536,1723671058950,-919.322496,0.00014794,2]
[334954537,1723671058959,-454.889454,0.00014794,2]
[334954538,1723671058969,-543.0,0.00014794,2]
[334954539,1723671058978,-919.322496,0.00014794,2]
[334954540,1723671058988,-500.0,0.00014794,2]
[334954541,1723671058999,-201.582572,0.00014794,2]
[334954542,1723671059008,-201.582572,0.00014794,2]
[334954543,1723671059018,-357.539196,0.00014794,2]
[334954544,1723671059027,-10000.0,0.00014794,2]
[334954545,1723671059037,-357.539196,0.00014794,2]
[334954546,1723671059046,-151.0,0.00014794,2]
[334954547,1723671059055,-463.702414,0.00014794,2]
[334954548,1723671059065,-463.702414,0.00014794,2]
[334954549,1723671059074,-500.0,0.00014794,2]
[334954550,1723671059084,-516.82,0.00014794,2]
[334954551,1723671059093,-500.0,0.00014794,2]
[334954552,1723671059102,-500.0,0.00014794,2]
[334954553,1723671059112,-1439.5,0.00014794,2]
[334954554,1723671059122,-283.669863,0.00014794,2]
[334954555,1723671059132,-283.669863,0.00014794,2]
[334954556,1723671059141,-296.765324,0.00014794,2]
[334954557,1723671059151,-296.765324,0.00014794,2]
[334954558,1723671059160,-500.0,0.00014794,2]
[334954559,1723671059170,-425.920658,0.00014794,2]
[334954560,1723671059180,-425.920658,0.00014794,2]
[334954561,1723671059190,-1276.494415,0.00014794,2]
[334954562,1723671059200,-1362.441765,0.00014794,2]
[334954563,1723671059210,-500.0,0.00014794,2]
[334954564,1723671059220,-1276.494415,0.00014794,2]
[334954565,1723671059230,-1362.441765,0.00014794,2]
[334954566,1723671059238,-500.0,0.00014794,2]
[334954567,1723671059249,-166.85438,0.00014794,2]
[334954568,1723671059258,-500.0,0.00014794,2]
[334954569,1723671059268,-500.0,0.00014794,2]
[334954570,1723671059277,-268.600172,0.00014794,2]
[334954571,1723671059286,-268.600172,0.00014794,2]
[334954572,1723671059295,-151.0,0.00014794,2]
[334954573,1723671059304,-500.0,0.00014794,2]
[334954574,1723671059314,-151.0,0.00014794,2]
[334954575,1723671059323,-1034.841714,0.00014794,2]
[334954576,1723671059333,-500.923607,0.00014794,2]
[334954577,1723671059343,-1034.841714,0.00014794,2]
[334954578,1723671059353,-500.0,0.00014794,2]
[334954579,1723671059362,-500.923607,0.00014794,2]
[334954580,1723671059373,-1349.32,0.00014794,2]
[334954581,1723671059382,-166.486331,0.00014794,2]
[334954582,1723671059392,-151.0,0.00014794,2]
[334954583,1723671059403,-500.0,0.00014794,2]
[334954584,1723671059413,-500.0,0.00014794,2]
[334954585,1723671059423,-166.486331,0.00014794,2]
[334954586,1723671059434,-500.0,0.00014794,2]
[334954587,1723671059444,-500.0,0.00014794,2]
[334954588,1723671059454,-221.7720254,0.00014794,2]
[334954589,1723671059464,-500.0,0.00014794,2]
[334954590,1723671059474,-879.23,0.00014794,2]
[334954591,1723671059483,-500.0,0.00014794,2]
[334954592,1723671059493,-192.855721,0.00014794,2]
[334954593,1723671059503,-192.855721,0.00014794,2]
[334954594,1723671059512,-173.62642188,0.00014794,2]
[334954595,1723671059522,-500.0,0.00014794,2]
[334954596,1723671059531,-500.0,0.00014794,2]
[334954597,1723671059541,-500.0,0.00014794,2]
[334954598,1723671059551,-500.0,0.00014794,2]
[334954599,1723671059561,-500.0,0.00014794,2]
[334954600,1723671059571,-500.0,0.00014794,2]
[334954601,1723671059673,-500.0,0.00014794,2]
[334954602,1723671059682,-586.485005,0.00014794,2]
[334954603,1723671059693,-196.877797,0.00014794,2]
[334954604,1723671059701,-586.485005,0.00014794,2]
[334954605,1723671059711,-1445.27,0.00014794,2]
[334954606,1723671059721,-196.877797,0.00014794,2]
[334954607,1723671059730,-1653.213627,0.00014794,2]
[334954608,1723671059740,-1653.213627,0.00014794,2]
[334954609,1723671059750,-500.0,0.00014794,2]
[334954610,1723671059759,-151.0,0.00014794,2]
[334954611,1723671059769,-257.362315,0.00014794,2]
[334954612,1723671059779,-257.362315,0.00014794,2]
[334954613,1723671059788,-300.943639,0.00014794,2]
[334954614,1723671059798,-300.943639,0.00014794,2]
[334954615,1723671059807,-500.0,0.00014794,2]
[334954616,1723671059816,-2426.382911,0.00014794,2]
[334954617,1723671059827,-2426.382911,0.00014794,2]
[334954618,1723671059839,-500.0,0.00014794,2]
[334954619,1723671059849,-500.0,0.00014794,2]
[334954620,1723671059858,-1238.655571,0.00014794,2]
[334954621,1723671059868,-500.0,0.00014794,2]
[334954622,1723671059878,-1238.655571,0.00014794,2]
[334954623,1723671059888,-454.889454,0.000148,2]
[334954624,1723671059898,-454.889454,0.000148,2]
[334954625,1723671059908,-201.582572,0.000148,2]
[334954626,1723671059918,-201.582572,0.000148,2]
[334954627,1723671059927,-10000.0,0.000148,2]
[334954628,1723671059937,-10000.0,0.000148,2]
[334954629,1723671059947,-425.920658,0.000148,2]
[334954630,1723671059957,-425.920658,0.000148,2]
[334954631,1723671059975,-3700.0,0.000148,5]
[334954632,1723671059984,-2033.88,0.00014866,2]
[334954633,1723671059994,-500.0,0.00014866,2]
[334954634,1723671060004,-1362.441765,0.00014867,2]
[334954635,1723671060014,-1362.441765,0.00014867,2]
[334954636,1723671060024,-268.600172,0.00014867,2]
[334954637,1723671060034,-268.600172,0.00014867,2]
[334954638,1723671060044,-500.923607,0.00014867,2]
[334954639,1723671060054,-500.923607,0.00014867,2]
[334954640,1723671060064,-4600.0,0.000149,5]
[334954641,1723671060073,-500.0,0.00014921,2]
[334954642,1723671060083,-251.2,0.00014955,2]
[334954643,1723671060093,-495.0,0.00015,2]
[334954644,1723671060103,-198.385566,0.00015,2]
[334954645,1723671060113,-198.385564,0.00015,2]
[334954646,1723671060123,-188.069537,0.00015,2]
[334954647,1723671060133,-151.0,0.00015,2]
[334954648,1723671060143,-996.3,0.00015,2]
[334954649,1723671060152,-14241.4512031,0.00015,2]
[334954650,1723671060162,-300.943639,0.00015,2]
[334954651,1723671060172,-300.943639,0.00015,2]
[334954652,1723671060182,-1238.655571,0.00015,2]
[334954653,1723671060191,-1238.655571,0.00015,2]
[334954654,1723671060200,-500.0,0.00015066,2]
[334954655,1723671060212,-500.0,0.00015066,2]
[334954656,1723671060221,-243.64295665,0.00015066,2]